bitfinex/quotes_ETHUSD_20230831
["timestamp","ask_amount","ask_price","bid_price","bid_amount"]
[1693510461991,4.61907,1660.0,1659.7,2.9277433]
[1693510462198,11.19943,1660.1,1659.9,2.9277433]
[1693510462199,0.101,1660.1,1659.9,2.9277433]
[1693510462505,0.101,1660.1,1660.0,32.0469533]
[1693510462693,30.6,1660.4,1660.3,18.671]
[1693510462896,0.101,1660.7,1660.3,10.1165]
[1693510463099,4.60928627,1660.7,1660.2,4.51735]
[1693510463415,4.60928627,1660.7,1660.4,0.602]
[1693510463910,9.12559627,1660.7,1660.4,0.602]
[1693510464212,9.03418,1660.4,1659.9,1.09500287]
[1693510464373,9.03418,1660.4,1660.0,2.9277433]
[1693510464580,14.1543776,1660.4,1660.0,2.9277433]
[1693510465378,14.1543776,1660.4,1660.1,0.602]
[1693510465379,9.6371776,1660.4,1660.1,0.602]
[1693510465583,9.6371776,1660.4,1660.1,3.5297433]
[1693510465780,0.6029976,1660.4,1660.1,3.5297433]
[1693510466596,9.6369576,1660.4,1659.9,0.602]
[1693510466798,18.11385636,1660.4,1660.0,3.5297433]
[1693510466999,13.59682636,1660.4,1660.0,3.5297433]
[1693510467601,6.358,1660.3,1660.0,0.602]
[1693510467912,15.67756,1660.2,1659.7,0.602]
[1693510468115,15.67756,1660.2,1659.7,3.5297433]
[1693510468281,18.14846576,1660.2,1659.7,3.5297433]
[1693510470115,16.02346576,1660.2,1659.7,3.5297433]
[1693510470318,11.1564976,1660.3,1659.7,3.5297433]
[1693510470319,6.58776,1660.3,1659.8,2.9277433]
[1693510470613,6.58785,1660.3,1659.8,11.9648033]
[1693510470818,13.2302,1660.3,1659.8,2.9277433]
[1693510471011,3.44802,1660.2,1659.8,2.9277433]
[1693510471314,4.51785,1660.1,1659.8,2.9277433]
[1693510471521,9.0357,1660.1,1659.6,0.602]
[1693510471712,9.0357,1660.1,1659.7,3.5297433]
[1693510473009,13.55355,1660.1,1659.7,3.5297433]
[1693510473189,1.355355,1660.0,1659.5,0.602]
[1693510473388,9.03689,1659.9,1659.6,3.5297433]
[1693510473820,7.940955,1660.0,1659.6,8.0488733]
[1693510474016,6.58559,1660.0,1659.6,8.0488733]
[1693510474245,2.0674,1660.0,1659.6,8.0488733]
[1693510474541,7.530463,1660.0,1659.6,8.0488733]
[1693510474684,22.924603,1660.0,1659.3,4.51986]
[1693510474889,2.125,1659.7,1659.2,0.602]
[1693510475089,13.55785,1659.6,1658.8,4.5213]
[1693510475291,16.42523236,1659.6,1658.9,0.45213]
[1693510475513,16.42523236,1659.6,1658.9,4.97315]
[1693510475716,16.42523236,1659.6,1659.0,0.602]
[1693510476024,9.03964,1659.4,1659.0,0.602]
[1693510476923,9.03964,1659.4,1659.1,3.5297433]
[1693510477222,9.03964,1659.4,1659.1,0.602]
[1693510477524,13.55948,1659.4,1658.9,1.05413]
[1693510477695,13.55948,1659.4,1659.0,2.9277433]
[1693510478688,15.122168,1659.4,1659.0,2.9277433]
[1693510478933,26.000008,1659.4,1658.7,0.602]
[1693510479225,28.125008,1659.4,1658.8,3.5297433]
[1693510479423,13.56114,1659.2,1658.8,3.5297433]
[1693510480298,9.04076,1659.2,1658.8,3.88271763]
[1693510480700,4.52038,1659.2,1658.8,3.88271763]
[1693510482228,5.125,1659.5,1658.9,2.9277433]
[1693510482229,4.51952,1659.5,1658.9,2.9277433]
[1693510482434,4.51945,1659.5,1659.1,4.5204]
[1693510482634,4.51945,1659.5,1659.2,2.9277433]
[1693510482810,4.51943,1659.5,1659.0,2.125]
[1693510482998,17.03703803,1659.5,1659.0,7.4484233]
[1693510484437,11.18138,1659.5,1659.0,7.4484233]
[1693510486119,2.1425,1659.5,1659.1,2.9277433]
[1693510486324,2.1425,1659.5,1659.2,4.5202]
[1693510486648,2.1425,1659.5,1659.0,4.52059]
[1693510486649,11.1814,1659.5,1659.0,4.52059]
[1693510486947,11.1814,1659.5,1659.0,2.9277433]
[1693510487246,17.03705803,1659.5,1659.0,2.9277433]
[1693510487637,17.03705803,1659.5,1659.0,7.4484633]
[1693510488578,2.1425,1659.5,1659.1,2.9277433]
[1693510488720,2.1425,1659.5,1659.2,4.52019]
[1693510489327,6.66198,1659.5,1659.1,7.4481333]
[1693510492074,15.70094,1659.5,1658.9,5.12294]
[1693510492255,15.70094,1659.5,1659.0,2.9277433]
[1693510492478,1.570094,1659.4,1659.0,2.9277433]
[1693510492790,4.52002,1659.3,1659.0,2.9277433]
[1693510495387,4.52002,1659.3,1659.0,7.4485133]
[1693510496286,4.52002,1659.3,1659.0,2.9277433]
[1693510498696,6.66198,1659.5,1659.0,11.9692633]
[1693510498697,2.1425,1659.5,1659.0,11.9692633]
[1693510498844,1.8694,1659.6,1659.1,3.32192633]
[1693510499042,4.51869,1659.8,1659.2,18.6130733]
[1693510499261,8.46829,1659.8,1659.2,18.6130733]
[1693510499760,12.98717,1659.8,1659.2,14.0929633]
[1693510500143,17.50605,1659.8,1659.2,9.5728533]
[1693510500375,17.50605,1659.8,1659.3,0.95728533]
[1693510500376,23.86405,1659.8,1659.3,0.95728533]
[1693510500565,23.86405,1659.8,1659.3,3.95728533]
[1693510501577,23.86405,1659.8,1659.3,0.95728533]
[1693510501764,23.86405,1659.8,1659.2,5.0527433]
[1693510501966,23.86405,1659.8,1659.2,2.9277433]
[1693510502273,23.86405,1659.8,1659.2,7.4479833]
[1693510502580,0.94525362,1659.7,1659.2,7.4479833]
[1693510502775,4.51927,1659.6,1659.2,7.4479833]
[1693510502944,16.39489536,1659.6,1659.1,1.79892633]
[1693510503148,20.91416536,1659.6,1659.1,1.79892633]
[1693510503354,20.91416536,1659.6,1659.1,6.31943633]
[1693510503888,0.94525362,1659.7,1659.2,5.0527433]
[1693510504046,4.51931,1659.6,1659.2,9.5729833]
[1693510504490,5.46429362,1659.7,1659.2,9.5729833]
[1693510504691,9.98330362,1659.7,1659.2,7.4479833]
[1693510504982,9.98330362,1659.7,1659.2,2.9277433]
[1693510504983,14.50231362,1659.7,1659.2,2.9277433]
[1693510505184,14.50231362,1659.7,1659.2,4.25636526]
[1693510505883,14.50231362,1659.7,1659.2,2.9277433]
[1693510506326,20.86031362,1659.7,1659.1,0.602]
[1693510506488,2.0894,1659.6,1659.1,3.5297433]
[1693510506692,11.12792,1659.6,1659.1,8.0501133]
[1693510507679,6.60861,1659.6,1659.1,8.0501133]
[1693510507880,6.60861,1659.6,1659.1,14.57977063]
[1693510508848,22.00503,1659.6,1659.0,0.602]
[1693510509131,22.00503,1659.6,1659.0,3.5297433]
[1693510511948,22.00503,1659.6,1659.0,2.9277433]
[1693510512293,22.00503,1659.6,1659.0,3.5297433]
[1693510512493,22.00503,1659.6,1659.0,4.57986823]
[1693510512494,24.96445936,1659.6,1659.0,4.57986823]
[1693510514717,24.96445936,1659.6,1659.1,5.0527433]
[1693510514718,2.0894,1659.6,1659.1,5.0527433]
[1693510514917,4.9256,1659.8,1659.2,15.68533]
[1693510514918,1.9256,1659.8,1659.2,15.68533]
[1693510515201,39.10643099,1659.9,1659.4,15.68354]
[1693510515202,30.6,1659.9,1659.4,15.68354]
[1693510515317,1.57459999,1660.1,1659.6,13.55733]
[1693510515520,1.57459999,1660.1,1659.7,8.8021963]
[1693510515718,4.5178,1660.1,1659.7,8.8021963]
[1693510515969,6.09239999,1660.1,1659.7,8.8021963]
[1693510516555,6.58677034,1660.1,1659.7,8.8021963]
[1693510516866,1.57459999,1660.0,1659.7,4.2834763]
[1693510517038,6.09273999,1660.0,1659.7,4.2834763]
[1693510517214,6.09273999,1660.0,1659.5,2.727]
[1693510517421,6.09273999,1660.0,1659.5,0.602]
[1693510517422,22.08994759,1660.0,1659.5,0.602]
[1693510517723,4.51845,1659.9,1659.4,5.12165]
[1693510517964,13.05366759,1660.0,1659.4,8.0493933]
[1693510518172,12.70043999,1659.9,1659.4,8.0493933]
[1693510518371,13.64559108,1659.9,1659.4,10.01033363]
[1693510519018,3.03415109,1659.9,1659.6,4.5191]
[1693510519181,0.94515109,1659.9,1659.6,16.4851633]
[1693510519671,0.94515109,1659.9,1659.6,7.4468433]
[1693510519870,0.94515109,1659.9,1659.6,8.85595563]
[1693510520025,0.94515109,1659.9,1659.6,13.37511563]
[1693510520379,0.94515109,1659.9,1659.6,17.89427563]
[1693510520527,0.94515109,1659.9,1659.6,13.37511563]
[1693510520728,0.94515109,1659.9,1659.6,8.85595563]
[1693510522175,0.94515109,1659.9,1659.6,13.37511563]
[1693510522370,0.94515109,1659.9,1659.7,0.88559556]
[1693510522533,0.94515109,1659.9,1659.7,5.40440556]
[1693510524634,0.94515109,1659.9,1659.6,4.33685563]
[1693510524835,5.46350109,1659.9,1659.6,2.9277433]
[1693510525472,11.55645108,1659.9,1659.6,2.9277433]
[1693510527149,1.57459999,1659.8,1659.6,2.9277433]
[1693510527379,4.51875,1659.8,1659.6,2.9277433]
[1693510527585,6.09334999,1659.8,1659.6,2.9277433]
[1693510528107,16.7382501,1659.8,1659.4,0.602]
[1693510528376,1.57459999,1659.7,1659.4,2.9277433]
[1693510528577,6.09375999,1659.6,1659.4,2.9277433]
[1693510528947,10.61291999,1659.6,1659.4,2.9277433]
[1693510529147,6.09375999,1659.6,1659.4,2.9277433]
[1693510529446,6.09375999,1659.6,1659.2,0.602]
[1693510529668,6.09375999,1659.6,1659.3,2.9277433]
[1693510529669,3.58869999,1659.6,1659.3,2.9277433]
[1693510529871,3.58869999,1659.6,1659.3,7.4476933]
[1693510530190,10.87404,1659.7,1659.4,2.125]
[1693510530191,1.57459999,1659.7,1659.4,2.125]
[1693510530347,1.57459999,1659.8,1659.5,11.9666033]
[1693510532239,1.57459999,1659.8,1659.5,16.4860333]
[1693510532482,1.57459999,1659.8,1659.7,4.51888]
[1693510533283,6.09320999,1659.8,1659.5,2.9277433]
[1693510533450,1.57459999,1659.8,1659.5,11.9664833]
[1693510533647,1.57459999,1659.8,1659.5,4.51937]
[1693510533840,1.57459999,1659.8,1659.6,2.9277433]
[1693510534036,1.57459999,1659.8,1659.4,1.8312]
[1693510534268,1.57459999,1659.7,1659.5,2.9277433]
[1693510535281,6.09349999,1659.7,1659.5,2.9277433]
[1693510535502,1.57459999,1659.6,1659.2,3.655691]
[1693510535789,1.57459999,1659.6,1659.3,7.4476833]
[1693510536335,1.57459999,1659.6,1659.3,4.51994]
[1693510536539,6.09386999,1659.6,1659.2,5.12212]
[1693510536767,6.09386999,1659.6,1659.2,8.0498633]
[1693510537489,8.24403144,1659.6,1659.2,3.5297433]
[1693510537655,14.68102396,1659.6,1659.2,3.5297433]
[1693510537864,1.57936144,1659.5,1659.2,3.5297433]
[1693510538066,10.61850144,1659.5,1659.2,3.5297433]
[1693510538650,1.57936144,1659.4,1659.2,3.5297433]
[1693510538855,6.09913144,1659.4,1659.2,3.5297433]
[1693510539071,4.51977,1659.4,1659.2,3.5297433]
[1693510539275,10.61839144,1659.5,1659.2,3.5297433]
[1693510539564,1.57936144,1659.5,1659.2,12.92312763]
[1693510539784,1.57936144,1659.5,1659.2,17.44337763]
[1693510539999,1.57936144,1659.6,1659.3,2.9277433]
[1693510540160,1.57936144,1659.7,1659.4,9.0394]
[1693510540364,1.57936144,1659.7,1659.4,11.9671433]
[1693510540606,1.57936144,1659.7,1659.4,13.82834363]
[1693510540910,1.57936144,1659.7,1659.5,5.0527433]
[1693510541119,35.58588482,1659.9,1659.6,9.03832]
[1693510541120,1.57936144,1659.8,1659.6,9.03832]
[1693510541264,1.57936144,1659.8,1659.7,2.9277433]
[1693510541461,1.57936144,1659.9,1659.7,13.82652563]
[1693510541797,1.57936144,1659.9,1659.7,20.47040563]
[1693510542577,1.57936144,1660.0,1659.7,20.47040563]
[1693510543381,1.57936144,1659.9,1659.7,15.95152563]
[1693510543597,1.57936144,1660.0,1659.7,13.82652563]
[1693510545546,1.57936144,1660.0,1659.7,18.34540563]
[1693510545846,1.57936144,1660.0,1659.8,1.38265256]
[1693510546047,1.57936144,1660.1,1659.9,4.51834]
[1693510546339,1.57936144,1660.1,1659.9,9.03668]
[1693510546488,1.57936144,1660.0,1659.9,4.51834]
[1693510546690,1.57936144,1660.1,1659.9,4.51834]
[1693510547222,1.57936144,1660.0,1659.8,13.34741586]
[1693510547931,1.57936144,1660.0,1659.8,8.82885586]
[1693510548142,1.57936144,1660.0,1659.8,7.4462033]
[1693510549460,1.57936144,1660.0,1659.8,2.9277433]
[1693510549606,1.57936144,1660.0,1659.8,7.4463133]
[1693510551153,6.09748144,1660.0,1659.8,2.9277433]
[1693510551547,4.51812,1660.0,1659.8,2.9277433]
[1693510552049,10.61528144,1660.1,1659.8,2.9277433]
[1693510552456,1.57936144,1660.0,1659.8,2.9277433]
[1693510553539,6.09751144,1660.0,1659.8,2.9277433]
[1693510553738,1.57936144,1660.0,1659.8,2.9277433]
[1693510553969,6.09728144,1660.1,1659.8,2.9277433]
[1693510555045,12.08076796,1660.1,1659.5,7.42849939]
[1693510555241,12.08076796,1660.1,1659.6,2.9277433]
[1693510555242,1.57936144,1660.0,1659.6,2.9277433]
[1693510555553,8.19511144,1660.0,1659.6,2.9277433]
[1693510556072,12.71336144,1660.0,1659.6,2.9277433]
[1693510556363,1.57936144,1659.9,1659.5,5.60207939]
[1693510556656,1.57936144,1659.9,1659.5,13.04910269]
[1693510556859,5.92307961,1660.0,1659.5,13.04910269]
[1693510557081,5.92307961,1660.0,1659.5,12.5683033]
[1693510557255,2.1716694,1659.9,1659.5,2.9277433]
[1693510557556,9.03734,1659.8,1659.5,2.9277433]
[1693510557761,1.57936144,1659.8,1659.5,2.9277433]
[1693510557933,6.6901494,1659.9,1659.5,7.4470933]
[1693510558138,6.09784144,1659.9,1659.5,7.4470933]
[1693510558339,10.61630144,1659.9,1659.5,2.9277433]
[1693510558535,1.57936144,1659.8,1659.5,2.9277433]
[1693510558740,4.51868,1659.8,1659.5,2.9277433]
[1693510558935,9.03736,1659.8,1659.5,2.9277433]
[1693510559367,6.09804144,1659.8,1659.5,2.9277433]
[1693510559724,10.61665144,1659.8,1659.5,2.9277433]
[1693510563168,6.09797144,1659.8,1659.5,2.9277433]
[1693510563528,10.61658144,1659.8,1659.5,2.9277433]
[1693510563733,10.61658144,1659.8,1659.6,0.29854334]
[1693510564337,12.53334249,1659.8,1659.6,0.29854334]
[1693510564537,3.09436144,1659.7,1659.6,0.29854334]
[1693510564746,16.96687373,1659.7,1659.1,11.03908]
[1693510565067,1.57950324,1659.6,1659.2,2.9277433]
[1693510565269,1.57950324,1659.6,1659.2,11.9681433]
[1693510565471,3.76320324,1659.6,1659.2,11.9681433]
[1693510565647,3.76320324,1659.6,1659.2,7.4478933]
[1693510565836,3.76320324,1659.6,1659.3,0.23874659]
[1693510566567,3.76320324,1659.6,1659.3,4.75859659]
[1693510566875,3.76320324,1659.6,1659.3,0.23874659]
[1693510568670,8.28237324,1659.6,1659.3,0.23874659]
[1693510569172,3.76320324,1659.6,1659.3,3.16648989]
[1693510569391,1.57950324,1659.7,1659.4,3.24439229]
[1693510569688,1.57950324,1659.7,1659.4,7.4472633]
[1693510570065,6.09839324,1659.7,1659.4,2.9277433]
[1693510570473,1.57950324,1659.6,1659.4,2.9277433]
[1693510570767,1.57950324,1659.6,1659.3,0.23874659]
[1693510570973,1.57950324,1659.6,1659.2,9.04032]
[1693510570974,6.09880324,1659.6,1659.2,9.04032]
[1693510571173,6.09880324,1659.6,1659.2,13.5841413]
[1693510571884,6.09880324,1659.6,1659.3,0.23918972]
[1693510571885,8.25100324,1659.6,1659.3,0.23918972]
[1693510572408,1.57950324,1659.7,1659.4,2.9277433]
[1693510572562,1.57950324,1659.7,1659.4,7.4473033]
[1693510572765,1.57928387,1659.7,1659.4,8.6679406]
[1693510573494,1.57928387,1659.6,1659.4,4.1483806]
[1693510573996,1.57928387,1659.6,1659.3,4.51984]
[1693510574198,1.57928387,1659.6,1659.5,0.23927959]
[1693510574690,6.41405064,1659.7,1659.3,7.4475833]
[1693510574859,1.57927158,1659.5,1659.3,7.4475833]
[1693510575582,1.57927158,1659.6,1659.4,2.9277433]
[1693510575761,1.57927158,1659.6,1659.4,8.79563863]
[1693510578798,1.57927158,1659.6,1659.4,4.27599863]
[1693510578994,1.57927158,1659.6,1659.4,2.9277433]
[1693510579287,1.57927158,1659.5,1659.4,2.9277433]
[1693510579678,1.57927158,1659.6,1659.4,2.9277433]
[1693510580364,1.57927158,1659.5,1659.4,2.9277433]
[1693510582668,1.57927158,1659.6,1659.2,7.651168]
[1693510582866,1.57927158,1659.6,1659.3,3.6928601]
[1693510583176,1.57927158,1659.6,1659.3,12.7327401]
[1693510585771,1.57872595,1659.6,1659.3,12.7327401]
[1693510587297,1.57872595,1659.6,1659.3,17.2527101]
[1693510587504,1.57872595,1659.6,1659.3,18.7677101]
[1693510587698,1.57872595,1659.6,1659.4,1.87677101]
[1693510588017,1.57872595,1659.6,1659.5,4.51943]
[1693510590074,1.57872595,1659.6,1659.5,7.4471733]
[1693510590297,1.57872595,1659.6,1659.5,11.9666033]
[1693510592270,1.57872595,1659.6,1659.5,18.0010333]
[1693510592605,1.89447114,1659.8,1659.5,20.01034485]
[1693510592606,1.57872595,1659.8,1659.5,20.01034485]
[1693510592916,1.57872595,1659.8,1659.6,4.4427433]
[1693510593215,1.57872595,1659.8,1659.7,4.51888]
[1693510595203,1.57872595,1659.8,1659.6,7.4466633]
[1693510595406,1.57872595,1659.8,1659.6,8.99570079]
[1693510596525,1.57872595,1659.7,1659.6,8.99570079]
[1693510596891,1.57872595,1659.7,1659.5,2.00931155]
[1693510597089,1.57872595,1659.7,1659.4,6.61158219]
[1693510597318,1.57872595,1659.7,1659.4,14.05888549]
[1693510597497,1.57872595,1659.7,1659.4,9.53932549]
[1693510597948,1.57872595,1659.6,1659.4,0.21531118]
[1693510598100,6.09788595,1659.6,1659.4,0.21531118]
[1693510598290,6.09788595,1659.6,1659.2,9.82201075]
[1693510598489,6.09788595,1659.6,1659.3,2.9277433]
[1693510598837,8.14008595,1659.6,1659.3,2.9277433]
[1693510599358,1.57872595,1659.5,1659.3,2.9277433]
[1693510600548,3.62092595,1659.6,1659.3,2.9277433]
[1693510601035,3.62092595,1659.6,1659.4,0.21535098]
[1693510601536,1.57872595,1659.5,1659.4,0.21535098]
[1693510605466,1.57945489,1659.5,1659.4,0.21535098]
[1693510608085,9.40102549,1659.5,1659.4,0.21535098]
[1693510608237,11.29637136,1659.5,1659.4,0.21535098]
[1693510608442,11.29637136,1659.5,1659.0,0.47681063]
[1693510608652,1.57937163,1659.3,1659.0,2.9277433]
[1693510608847,4.52025,1659.2,1659.0,2.9277433]
[1693510612877,13.56075,1659.2,1659.0,2.9277433]
[1693510613030,17.31003419,1659.2,1658.8,1.8454]
[1693510613266,17.31003419,1659.2,1658.9,2.9277433]
[1693510613693,17.31003419,1659.2,1659.0,0.21675042]
[1693510614493,17.31003419,1659.2,1658.7,0.602]
[1693510614687,17.31003419,1659.2,1658.8,2.9277433]
[1693510615420,17.30838255,1659.2,1658.8,2.9277433]
[1693510615779,4.14458786,1659.1,1658.9,0.21726253]
[1693510616014,13.56237,1659.0,1658.9,0.21726253]
[1693510616325,13.56237,1659.0,1658.4,7.50070611]
[1693510616616,15.53417,1659.0,1658.5,2.9277433]
[1693510616837,2.0548,1658.9,1658.5,3.97058824]
[1693510617056,2.0548,1658.9,1658.5,8.49273824]
[1693510617333,2.0548,1658.9,1658.5,14.52988824]
[1693510620336,37.29019947,1659.2,1658.5,19.05203824]
[1693510620503,32.6298,1659.2,1658.6,1.515]
[1693510620700,37.15026,1659.2,1658.7,2.9277433]
[1693510620907,41.652264,1659.2,1658.7,2.9277433]
[1693510621431,20.093244,1659.2,1658.7,2.9277433]
[1693510621845,29.54395708,1659.2,1658.5,1.04284494]
[1693510622009,27.966244,1659.2,1658.6,2.9277433]
[1693510623650,1.515,1659.0,1658.6,2.9277433]
[1693510623935,13.56336,1658.9,1658.6,2.9277433]
[1693510624151,15.071196,1658.9,1658.6,2.9277433]
[1693510624641,16.01687474,1658.9,1658.6,2.9277433]
[1693510625396,16.01687474,1658.9,1658.3,0.602]
[1693510625397,17.53187474,1658.9,1658.3,0.602]
[1693510625604,16.01687474,1658.9,1658.4,2.9277433]
[1693510625846,2.0576,1658.8,1658.4,2.9277433]
[1693510626001,4.52166,1658.7,1658.5,0.27902451]
[1693510626315,9.04327,1658.7,1658.5,0.27902451]
[1693510626512,15.07993,1658.7,1658.5,0.27902451]
[1693510626953,13.56493,1658.7,1658.5,0.27902451]
[1693510627105,13.56493,1658.7,1658.1,0.602]
[1693510627445,13.56493,1658.7,1658.6,0.28038171]
[1693510627651,18.27477184,1658.7,1658.6,0.28038171]
[1693510627947,16.42677184,1658.7,1658.2,2.9277433]
[1693510628188,18.27477184,1658.7,1658.2,2.9277433]
[1693510628495,18.27477184,1658.7,1658.3,0.28054788]
[1693510629250,1.515,1658.6,1658.3,0.28054788]
[1693510629540,13.56645,1658.5,1658.0,0.702]
[1693510629742,13.56645,1658.5,1658.1,2.9277433]
[1693510630101,13.56645,1658.5,1658.4,0.2807007]
[1693510630303,9.0443,1658.5,1658.1,2.9277433]
[1693510630528,4.52212,1658.6,1658.1,7.4509833]
[1693510630749,2.415108,1658.7,1658.2,1.515]
[1693510630902,2.415108,1658.7,1658.3,13.4879633]
[1693510631099,2.415108,1658.7,1658.4,1.34879633]
[1693510631332,4.52136,1658.8,1658.4,8.79889963]
[1693510632043,2.93707874,1658.9,1658.4,13.32132963]
[1693510632244,11.97922874,1658.9,1658.4,8.79889963]
[1693510636309,16.50031874,1658.9,1658.4,4.27653963]
[1693510637842,19.28614249,1658.9,1658.4,4.27653963]
[1693510638720,19.28614249,1658.9,1658.4,2.9277433]
[1693510639472,11.97922874,1658.9,1658.4,7.4499933]
[1693510640431,16.50031874,1658.9,1658.4,2.9277433]
[1693510641172,18.62071874,1658.9,1658.4,2.9277433]
[1693510641378,14.09962874,1658.9,1658.4,2.9277433]
[1693510641532,18.62071874,1658.9,1658.4,2.9277433]
[1693510641888,18.62071874,1658.9,1658.4,3.73297463]
[1693510642547,4.52166,1658.7,1658.3,5.12457]
[1693510642934,6.64206,1658.7,1658.3,5.12457]
[1693510643642,2.1204,1658.7,1658.3,9.64727]
[1693510645391,7.45822874,1658.9,1658.5,4.52215]
[1693510645598,9.57702874,1658.9,1658.5,4.52215]
[1693510645950,9.57702874,1658.9,1658.6,0.28162083]
[1693510647499,5.05587874,1658.9,1658.6,4.80343083]
[1693510648686,5.05587874,1658.9,1658.6,5.73596691]
[1693510649993,0.94567874,1658.9,1658.7,2.9277433]
[1693510650286,0.94567874,1658.9,1658.8,4.52134]
[1693510650849,0.94567874,1658.9,1658.7,7.4492433]
[1693510651087,0.94567874,1658.9,1658.6,2.72915691]
[1693510651275,0.94567874,1658.9,1658.6,4.14190021]
[1693510651586,0.94567874,1658.9,1658.6,8.66375021]
[1693510652401,0.94567874,1658.9,1658.7,0.86637502]
[1693510652999,0.94567874,1658.9,1658.7,5.38791502]
[1693510653894,0.94567874,1658.9,1658.7,8.31565832]
[1693510655292,0.94567874,1658.9,1658.7,3.79411832]
[1693510656669,0.94567874,1658.9,1658.7,8.31568832]
[1693510656875,0.94567874,1658.9,1658.7,3.79411832]
[1693510658175,0.94567874,1658.9,1658.7,2.9277433]
[1693510658176,5.46673874,1658.9,1658.7,2.9277433]
[1693510660313,0.94567874,1658.9,1658.7,7.4493433]
[1693510661014,0.94567874,1658.9,1658.8,0.25402242]
[1693510661870,4.20318628,1659.3,1658.8,18.26078572]
[1693510662077,2.1532,1659.3,1659.0,9.04148]
[1693510662278,2.52319196,1659.4,1659.1,2.9277433]
[1693510662482,7.04294196,1659.4,1659.1,2.9277433]
[1693510662929,9.98497888,1659.4,1659.1,2.9277433]
[1693510663435,11.56269196,1659.4,1659.1,2.9277433]
[1693510663723,7.04294196,1659.4,1659.1,2.9277433]
[1693510664082,11.56264196,1659.4,1659.1,2.9277433]
[1693510664478,13.77064196,1659.4,1659.1,2.9277433]
[1693510664731,15.59966916,1659.4,1658.9,10.27108857]
[1693510664889,17.54706916,1659.4,1659.0,2.9277433]
[1693510666187,15.71804196,1659.4,1659.0,2.9277433]
[1693510666581,11.19829196,1659.4,1659.0,7.4485233]
[1693510667217,6.67859196,1659.4,1659.0,7.4485233]
[1693510667600,6.67859196,1659.4,1659.0,11.9693133]
[1693510667838,1.57771308,1659.3,1659.0,11.9693133]
[1693510668426,1.57771308,1659.3,1659.0,14.19334149]
[1693510668799,6.67859196,1659.4,1659.0,14.19334149]
[1693510669124,1.57771308,1659.3,1659.0,14.19334149]
[1693510669825,15.71813196,1659.4,1659.0,7.4485233]
[1693510671392,15.71813196,1659.4,1659.0,2.9277433]
[1693510671894,1.57771308,1659.3,1658.9,3.322]
[1693510672087,6.09781308,1659.3,1658.9,4.7347433]
[1693510672327,4.5203,1659.2,1658.9,4.7347433]
[1693510672826,6.5386,1659.2,1658.9,2.9277433]
[1693510675810,6.5386,1659.2,1659.0,0.19943504]
[1693510676625,18.67186308,1659.2,1659.0,0.19943504]
[1693510676842,1.57771308,1659.1,1659.0,0.19943504]
[1693510677044,17.00645939,1659.1,1659.0,0.19943504]
[1693510677249,17.00645939,1659.1,1658.6,1.8094]
[1693510677540,1.57771308,1659.0,1658.6,2.9277433]
[1693510677742,13.56336,1658.9,1658.6,2.9277433]
[1693510677942,13.56336,1658.9,1658.7,0.19187827]
[1693510678251,17.28006731,1658.9,1658.6,2.9277433]
[1693510678441,17.28006731,1658.9,1658.4,2.4114]
[1693510678643,17.28006731,1658.9,1658.4,2.9277433]
[1693510678644,18.85778039,1658.9,1658.4,2.9277433]
[1693510679251,18.85778039,1658.9,1658.5,0.19234734]
[1693510680255,1.57771308,1658.8,1658.5,0.19234734]
[1693510680439,18.08644,1658.7,1658.5,0.19234734]
[1693510680781,1.808644,1658.6,1658.2,1.515]
[1693510680920,6.69279,1658.6,1658.3,2.9277433]
[1693510681257,9.38710731,1658.9,1658.3,18.0108233]
[1693510681258,8.06732308,1658.9,1658.3,18.0108233]
[1693510681410,34.34851308,1659.0,1658.6,1.515]
[1693510681610,3.74851308,1659.0,1658.7,7.4493433]
[1693510681809,3.74851308,1659.0,1658.8,0.74493433]
[1693510681810,2.1708,1659.0,1658.8,0.74493433]
[1693510682058,3.54611308,1659.1,1658.8,8.19387763]
[1693510682059,1.57771308,1659.1,1658.8,8.19387763]
[1693510682234,3.74851308,1659.1,1658.8,8.19387763]
[1693510682851,12.78961308,1659.1,1658.5,6.63901]
[1693510683027,1.57771308,1659.0,1658.6,4.9005433]
[1693510683209,4.52111,1658.9,1658.6,4.9005433]
[1693510683615,9.04223,1658.9,1658.6,2.9277433]
[1693510684115,11.10123,1658.9,1658.6,2.9277433]
[1693510684452,15.62235,1658.9,1658.6,2.9277433]
[1693510685850,17.20006308,1658.9,1658.6,2.9277433]
[1693510686053,19.37215939,1658.9,1658.6,2.9277433]
[1693510686351,19.37215939,1658.9,1658.3,3.9249]
[1693510686561,7.93571308,1658.8,1658.1,0.66641188]
[1693510686877,7.93571308,1658.8,1658.7,0.20675393]
[1693510686878,20.5250176,1658.8,1658.7,0.20675393]
[1693510687179,2.0649,1658.7,1658.2,2.9277433]
[1693510687319,13.56606,1658.6,1658.2,2.9277433]
[1693510687815,13.56606,1658.6,1658.3,0.2069481]
[1693510688015,13.56606,1658.6,1658.2,2.9277433]
[1693510688454,13.56606,1658.6,1658.3,0.2069481]
[1693510688764,9.04404,1658.6,1658.2,7.4506933]
[1693510688961,2.0649,1658.7,1658.2,13.35165463]
[1693510689161,45.866967,1658.9,1658.4,0.20690765]
[1693510689162,38.67170704,1658.9,1658.4,0.20690765]
[1693510689373,2.1359,1658.9,1658.5,11.9719133]
[1693510689794,2.1359,1658.9,1658.5,18.0090633]
[1693510690001,2.1359,1658.9,1658.6,1.80090633]
[1693510690194,2.1359,1658.9,1658.6,4.72864963]
[1693510690195,6.65699,1658.9,1658.6,4.72864963]
[1693510690494,11.17808,1658.9,1658.6,4.72864963]
[1693510690892,11.17808,1658.9,1658.7,0.20674339]
[1693510691397,11.17808,1658.9,1658.6,2.9277433]
[1693510691596,15.69917,1658.9,1658.6,2.9277433]
[1693510693101,15.69917,1658.9,1658.5,1.9152]
[1693510693264,17.27699704,1658.9,1658.2,4.28387133]
[1693510693466,1.7276997,1658.8,1658.3,5.4082433]
[1693510693661,9.04348,1658.7,1658.3,5.4082433]
[1693510694369,11.07628,1658.7,1658.3,5.4082433]
[1693510694901,11.07628,1658.7,1658.3,9.9308433]
[1693510695203,11.07628,1658.7,1658.3,12.04517576]
[1693510695566,4.52146,1658.8,1658.3,22.60557576]
[1693510697667,6.52677,1658.9,1658.3,22.60557576]
[1693510697668,11.04797,1658.9,1658.3,22.60557576]
[1693510697900,6.52677,1658.9,1658.3,22.60557576]
[1693510700372,6.52677,1658.9,1658.4,1.515]
[1693510700573,6.52677,1658.9,1658.5,11.9718133]
[1693510702512,11.04797,1658.9,1658.5,11.9718133]
[1693510703914,6.52677,1658.9,1658.5,11.9718133]
[1693510705898,6.52677,1658.9,1658.6,0.20700273]
[1693510706222,11.04783,1658.9,1658.6,0.20700273]